[Event "NOR-ch Various 2019"]
[Site "Larvik"]
[Date "2019.07.10"]
[Round "6.11"]
[White "Skaansar, Lasse"]
[Black "Nordlov, Jorgen"]
[Result "0-1"]
[ECO "A46"]
[WhiteElo "1394"]
[BlackElo "1263"]
[Annotator "NA"]
[PlyCount "64"]
[EventDate "2019.07.06"]
[EventType "swiss"]
[EventCountry "NOR"]
[SourceTitle "playchess.com"]
[Source "ChessBase"]
[SourceQuality "1"]
[TimeControl "40/5400+30:1800+30"]

1. Nf3 {[%emt 0:00:00]} g6 {[%emt 0:00:00]} 2. d4 {[%emt 0:00:02]} c5 {[%emt 0:00:21]} 3. c3 {[%emt 0:01:02]} Nf6 {[%emt 0:01:31]} 4. Bd2 {[%emt 0:01:02]} b5 {[%emt 0:01:17]} 5. Qc1 {[%emt 0:01:04]} h6 {[%emt 0:01:43]} 6. h3 {[%emt 0:01:24]} c4 {[%emt 0:00:32]} 7. a4 {[%emt 0:01:12]} Qa5 {[%emt 0:00:57]} 8. Na3 {[%emt 0:01:06]} a6 {[%emt 0:03:42]} 9. Qc2 {[%emt 0:02:41]} Nc6 {[%emt 0:01:32]} 10. b3 {[%emt 0:14:31]} cxb3 {[%emt 0:04:26]} 11. Qxb3 {[%emt 0:00:28]} Ne4 {[%emt 0:04:23]} 12. Ne5 {[%emt 0:18:27]} Nxe5 {[%emt 0:03:08]} 13. dxe5 {[%emt 0:00:13]} Nxd2 {[%emt 0:01:45]} 14. Kxd2 {[%emt 0:11:16]} bxa4 {[%emt 0:03:01]} 15. Qc4 {[%emt 0:07:31]} Qxe5 {[%emt 0:07:18]} 16. Qxa4 {[%emt 0:00:58]} Bg7 {[%emt 0:00:50]} 17. Nb5 {[%emt 0:05:20]} axb5 {[%emt 0:12:52]} 18. Qxa8 {[%emt 0:00:24]} Qxc3+ {[%emt 0:00:10]} 19. Kd1 {[%emt 0:01:14]} Qb3+ {[%emt 0:01:32]} 20. Kd2 {[%emt 0:03:13]} Bc3+ {[%emt 0:01:47]} 21. Ke3 {[%emt 0:01:32]} Bxa1+ {[%emt 0:00:00]} 22. Kf4 {[%emt 0:00:47]} Qc4+ {[%emt 0:00:00]} 23. e4 {[%emt 0:00:30]} Qc1+ {[%emt 0:01:58]} 24. Kg3 {[%emt 0:00:41]} Be5+ {[%emt 0:00:20]} 25. Kf3 {[%emt 0:01:20]} Qf4+ {[%emt 0:02:08]} 26. Ke2 {[%emt 0:00:14]} O-O {[%emt 0:00:14]} 27. g3 {[%emt 0:01:01]} Qc1 {[%emt 0:01:06]} 28. Bg2 {[%emt 0:00:40]} Qc2+ {[%emt 0:01:19]} 29. Ke3 {[%emt 0:01:15]} d6 {[%emt 0:01:05]} 30. Qd5 {[%emt 0:01:40]} b4 {[%emt 0:02:47]} 31. Rd1 {[%emt 0:01:28]} Ba6 {[%emt 0:02:03]} 32. f4 {[%emt 0:00:59]} Qe2# {[%emt 0:00:25]} 0-1

[Event "NOR-ch Various 2019"]
[Site "Larvik"]
[Date "2019.07.10"]
[Round "6.12"]
[White "Ratama, Sofie Kristine"]
[Black "Tobiassen, Richard"]
[Result "1/2-1/2"]
[ECO "B13"]
[WhiteElo "1329"]
[BlackElo "1321"]
[Annotator "NA"]
[PlyCount "47"]
[EventDate "2019.07.06"]
[EventType "swiss"]
[EventCountry "NOR"]
[SourceTitle "playchess.com"]
[Source "ChessBase"]
[SourceQuality "1"]
[TimeControl "40/5400+30:1800+30"]

1. e4 {[%emt 0:00:00]} c6 {[%emt 0:00:00]} 2. d4 {[%emt 0:00:00]} d5 {[%emt 0:00:07]} 3. exd5 {[%emt 0:00:07]} cxd5 {[%emt 0:00:11]} 4. Nc3 {[%emt 0:00:59]} Nf6 {[%emt 0:00:20]} 5. h3 {[%emt 0:00:42]} Nc6 {[%emt 0:00:38]} 6. Nf3 {[%emt 0:00:27]} a6 {[%emt 0:01:50]} 7. a3 {[%emt 0:03:41]} Bf5 {[%emt 0:01:04]} 8. Bd3 {[%emt 0:00:39]} Bxd3 {[%emt 0:00:15]} 9. Qxd3 {[%emt 0:00:11]} e6 {[%emt 0:00:09]} 10. Bf4 {[%emt 0:02:17]} Bd6 {[%emt 0:01:06]} 11. Bxd6 {[%emt 0:01:18]} Qxd6 {[%emt 0:01:55]} 12. O-O {[%emt 0:00:34]} O-O {[%emt 0:00:27]} 13. Rfe1 {[%emt 0:01:17]} Rfe8 {[%emt 0:00:49]} 14. Ne5 {[%emt 0:04:12]} Nd7 {[%emt 0:03:20]} 15. Nxd7 {[%emt 0:02:01]} Qxd7 {[%emt 0:04:21]} 16. Rad1 {[%emt 0:05:46]} Qd8 {[%emt 0:00:36]} 17. Na4 {[%emt 0:05:09]} b5 {[%emt 0:04:48]} 18. Nc5 {[%emt 0:00:26]} Qe7 {[%emt 0:02:02]} 19. b4 {[%emt 0:03:35]} Nb8 {[%emt 0:07:08]} 20. Qg3 {[%emt 0:05:26]} Nd7 {[%emt 0:01:25]} 21. Nxd7 {[%emt 0:02:02]} Qxd7 {[%emt 0:00:07]} 22. Rd3 {[%emt 0:05:05]} Rad8 {[%emt 0:00:59]} 23. Rde3 {[%emt 0:02:22]} Qd6 {[%emt 0:03:30]} 24. Qxd6 {[%emt 0:01:25]} 1/2-1/2

[Event "NOR-ch Various 2019"]
[Site "Larvik"]
[Date "2019.07.10"]
[Round "6.14"]
[White "Dalbak, Tom H."]
[Black "Strand, Karl W."]
[Result "0-1"]
[ECO "D20"]
[WhiteElo "1184"]
[BlackElo "2054"]
[Annotator "NA"]
[PlyCount "108"]
[EventDate "2019.07.06"]
[EventType "swiss"]
[EventCountry "NOR"]
[SourceTitle "playchess.com"]
[Source "ChessBase"]
[SourceQuality "1"]
[TimeControl "40/5400+30:1800+30"]

1. d4 {[%emt 0:00:00]} d5 {[%emt 0:00:00]} 2. c4 {[%emt 0:00:00]} dxc4 {[%emt 0:00:00]} 3. e4 {[%emt 0:00:00]} e5 {[%emt 0:00:00]} 4. d5 {[%emt 0:01:14]} Nf6 {[%emt 0:00:54]} 5. Bg5 {[%emt 0:01:04]} Be7 {[%emt 0:00:34]} 6. Nc3 {[%emt 0:00:47]} Nxe4 {[%emt 0:04:27]} 7. Bxe7 {[%emt 0:00:57]} Nxc3 {[%emt 0:00:12]} 8. Bxd8 {[%emt 0:04:24]} Nxd1 {[%emt 0:02:32]} 9. Rxd1 {[%emt 0:01:37]} Kxd8 {[%emt 0:00:23]} 10. Bxc4 {[%emt 0:00:19]} Ke7 {[%emt 0:03:14]} 11. Ne2 {[%emt 0:01:00]} Bg4 {[%emt 0:01:14]} 12. f3 {[%emt 0:01:33]} Bf5 {[%emt 0:00:36]} 13. Ng3 {[%emt 0:01:07]} Bg6 {[%emt 0:03:15]} 14. O-O {[%emt 0:00:35]} f5 {[%emt 0:01:02]} 15. Rd2 {[%emt 0:03:34]} Na6 {[%emt 0:02:22]} 16. Bxa6 {[%emt 0:01:14]} bxa6 {[%emt 0:00:14]} 17. Rfd1 {[%emt 0:00:29]} Rhd8 {[%emt 0:00:32]} 18. Ne2 {[%emt 0:01:00]} Rd6 {[%emt 0:00:43]} 19. Nc3 {[%emt 0:00:57]} Rad8 {[%emt 0:00:45]} 20. Na4 {[%emt 0:03:19]} Bf7 {[%emt 0:02:37]} 21. Nc5 {[%emt 0:07:33]} Rxd5 {[%emt 0:07:41]} 22. Rxd5 {[%emt 0:01:25]} Rxd5 {[%emt 0:00:22]} 23. Rxd5 {[%emt 0:00:10]} Bxd5 {[%emt 0:00:13]} 24. Nxa6 {[%emt 0:00:37]} Kd6 {[%emt 0:00:26]} 25. a3 {[%emt 0:05:54]} c5 {[%emt 0:04:33]} 26. b4 {[%emt 0:10:37]} c4 {[%emt 0:00:42]} 27. Nc5 {[%emt 0:00:20]} e4 {[%emt 0:00:39]} 28. Na4 {[%emt 0:07:18]} Bc6 {[%emt 0:02:27]} 29. Nc3 {[%emt 0:00:39]} e3 {[%emt 0:01:51]} 30. f4 {[%emt 0:02:33]} a6 {[%emt 0:04:35]} 31. Kf1 {[%emt 0:00:50]} Be4 {[%emt 0:00:59]} 32. Ke2 {[%emt 0:01:16]} Bxg2 {[%emt 0:00:31]} 33. Kxe3 {[%emt 0:00:08]} Bc6 {[%emt 0:00:32]} 34. Kd4 {[%emt 0:00:36]} g5 {[%emt 0:02:11]} 35. fxg5 {[%emt 0:02:03]} f4 {[%emt 0:00:36]} 36. Nd1 {[%emt 0:00:21]} Bd5 {[%emt 0:03:01]} 37. h4 {[%emt 0:02:54]} Bf3 {[%emt 0:20:37]} 38. Nf2 {[%emt 0:01:11]} Be2 {[%emt 0:00:16]} 39. a4 {[%emt 0:09:17]} Kc6 {[%emt 0:01:05]} 40. Kc3 {[%emt 0:03:37]} Kd5 {[%emt 0:01:48]} 41. b5 {[%emt 0:39:40]} axb5 {[%emt 0:33:46]} 42. axb5 {[%emt 0:01:36]} Kc5 {[%emt 0:00:33]} 43. b6 {[%emt 0:00:21]} Kxb6 {[%emt 0:00:10]} 44. Ne4 {[%emt 0:02:20]} Bd3 {[%emt 0:01:57]} 45. Nf2 {[%emt 0:01:21]} Kc5 {[%emt 0:01:34]} 46. Nxd3+ {[%emt 0:01:23]} cxd3 {[%emt 0:00:11]} 47. Kxd3 {[%emt 0:00:09]} Kd5 {[%emt 0:01:01]} 48. h5 {[%emt 0:00:46]} Ke5 {[%emt 0:00:11]} 49. g6 {[%emt 0:00:15]} hxg6 {[%emt 0:00:46]} 50. h6 {[%emt 0:00:18]} Kf6 {[%emt 0:00:37]} 51. h7 {[%emt 0:00:29]} Kg7 {[%emt 0:00:04]} 52. h8=Q+ {[%emt 0:00:12]} Kxh8 {[%emt 0:00:08]} 53. Ke4 {[%emt 0:00:06]} g5 {[%emt 0:01:07]} 54. Kf5 {[%emt 0:00:38]} f3 {[%emt 0:00:17]} 0-1

[Event "NOR-ch Various 2019"]
[Site "Larvik"]
[Date "2019.07.10"]
[Round "6.15"]
[White "Sjol, Henrik"]
[Black "Fossan, Petter"]
[Result "0-1"]
[ECO "A47"]
[WhiteElo "1755"]
[BlackElo "2295"]
[Annotator "NA"]
[PlyCount "56"]
[EventDate "2019.07.06"]
[EventType "swiss"]
[EventCountry "NOR"]
[SourceTitle "playchess.com"]
[Source "ChessBase"]
[SourceQuality "1"]
[TimeControl "40/5400+30:1800+30"]

1. d4 {[%emt 0:00:00]} Nf6 {[%emt 0:00:00]} 2. Bf4 {[%emt 0:00:00]} c5 {[%emt 0:03:17]} 3. c3 {[%emt 0:05:45]} e6 {[%emt 0:02:14]} 4. e3 {[%emt 0:01:56]} b6 {[%emt 0:00:08]} 5. Nf3 {[%emt 0:00:39]} Bb7 {[%emt 0:00:10]} 6. Nbd2 {[%emt 0:00:32]} Be7 {[%emt 0:03:22]} 7. Be2 {[%emt 0:03:01]} O-O {[%emt 0:00:10]} 8. h3 {[%emt 0:02:55]} d6 {[%emt 0:02:50]} 9. O-O {[%emt 0:00:57]} Nbd7 {[%emt 0:06:17]} 10. Rc1 {[%emt 0:06:08]} Re8 {[%emt 0:02:02]} 11. Re1 {[%emt 0:03:39]} Bf8 {[%emt 0:00:52]} 12. Qc2 {[%emt 0:08:04]} Rc8 {[%emt 0:02:49]} 13. Qb1 {[%emt 0:02:00]} e5 {[%emt 0:12:42]} 14. dxe5 {[%emt 0:03:50]} dxe5 {[%emt 0:01:47]} 15. Bg5 {[%emt 0:02:28]} e4 {[%emt 0:05:02]} 16. Nh2 {[%emt 0:03:53]} Ne5 {[%emt 0:02:46]} 17. Bxf6 {[%emt 0:06:31]} Qxf6 {[%emt 0:02:35]} 18. Nxe4 {[%emt 0:04:18]} Qc6 {[%emt 0:01:27]} 19. f3 {[%emt 0:04:05]} c4 {[%emt 0:03:26]} 20. Rcd1 {[%emt 0:04:05]} Qh6 {[%emt 0:01:09]} 21. Nf1 {[%emt 0:07:32]} Bxe4 {[%emt 0:06:39]} 22. fxe4 {[%emt 0:02:49]} Bc5 {[%emt 0:00:50]} 23. Qc1 {[%emt 0:02:32]} Rc6 {[%emt 0:01:34]} 24. Rd5 {[%emt 0:02:41]} Rg6 {[%emt 0:01:00]} 25. Kh2 {[%emt 0:05:05]} Qh4 {[%emt 0:04:38]} 26. g3 {[%emt 0:05:34]} Qxe4 {[%emt 0:00:27]} 27. Red1 {[%emt 0:00:18]} Rf6 {[%emt 0:01:06]} 28. b4 {[%emt 0:01:26]} Rf2+ {[%emt 0:00:48]} 0-1

[Event "NOR-ch Various 2019"]
[Site "Larvik"]
[Date "2019.07.10"]
[Round "6.16"]
[White "Gyldenas, Ole Jorn"]
[Black "Hansen, Svein E"]
[Result "1/2-1/2"]
[ECO "D79"]
[WhiteElo "1957"]
[BlackElo "2064"]
[Annotator "NA"]
[PlyCount "35"]
[EventDate "2019.07.06"]
[EventType "swiss"]
[EventCountry "NOR"]
[SourceTitle "playchess.com"]
[Source "ChessBase"]
[SourceQuality "1"]
[TimeControl "40/5400+30:1800+30"]

1. Nf3 {[%emt 0:00:00]} Nf6 {[%emt 0:00:16]} 2. d4 {[%emt 0:00:14]} g6 {[%emt 0:00:29]} 3. g3 {[%emt 0:00:19]} Bg7 {[%emt 0:00:20]} 4. Bg2 {[%emt 0:00:05]} d5 {[%emt 0:00:33]} 5. O-O {[%emt 0:01:12]} O-O {[%emt 0:02:48]} 6. c4 {[%emt 0:02:42]} c6 {[%emt 0:00:00]} 7. cxd5 {[%emt 0:01:56]} cxd5 {[%emt 0:00:00]} 8. Nc3 {[%emt 0:00:16]} Nc6 {[%emt 0:00:00]} 9. Bf4 {[%emt 0:03:51]} Qb6 {[%emt 0:07:56]} 10. Na4 {[%emt 0:06:23]} Qb5 {[%emt 0:01:35]} 11. Rc1 {[%emt 0:10:00]} Ne4 {[%emt 0:03:02]} 12. h3 {[%emt 0:06:40]} Bd7 {[%emt 0:01:55]} 13. b3 {[%emt 0:03:46]} Rac8 {[%emt 0:02:03]} 14. Nc5 {[%emt 0:06:40]} Nxc5 {[%emt 0:04:02]} 15. Rxc5 {[%emt 0:01:07]} Qb4 {[%emt 0:01:23]} 16. Rxd5 {[%emt 0:10:27]} Be6 {[%emt 0:00:16]} 17. Rc5 {[%emt 0:01:05]} Nxd4 {[%emt 0:00:50]} 18. Rxc8 {[%emt 0:00:41]} 1/2-1/2

[Event "NOR-ch Various 2019"]
[Site "Larvik"]
[Date "2019.07.10"]
[Round "6.17"]
[White "Heier, Odin Nikolai"]
[Black "Kizatbay, Abyl"]
[Result "0-1"]
[ECO "A48"]
[WhiteElo "1863"]
[BlackElo "2216"]
[Annotator "NA"]
[PlyCount "154"]
[EventDate "2019.07.06"]
[EventType "swiss"]
[EventCountry "NOR"]
[SourceTitle "playchess.com"]
[Source "ChessBase"]
[SourceQuality "1"]
[TimeControl "40/5400+30:1800+30"]

1. d4 {[%emt 0:00:00]} Nf6 {[%emt 0:01:20]} 2. Bf4 {[%emt 0:00:00]} g6 {[%emt 0:00:21]} 3. Nf3 {[%emt 0:00:04]} Bg7 {[%emt 0:00:14]} 4. e3 {[%emt 0:00:16]} d6 {[%emt 0:00:04]} 5. Be2 {[%emt 0:00:55]} Nh5 {[%emt 0:00:16]} 6. Bg5 {[%emt 0:00:17]} h6 {[%emt 0:00:11]} 7. Bh4 {[%emt 0:00:05]} g5 {[%emt 0:00:14]} 8. Nfd2 {[%emt 0:12:56]} Nf4 {[%emt 0:00:11]} 9. exf4 {[%emt 0:00:16]} gxh4 {[%emt 0:00:03]} 10. Nf3 {[%emt 0:11:52]} h3 {[%emt 0:03:39]} 11. g3 {[%emt 0:02:25]} c5 {[%emt 0:00:19]} 12. Nc3 {[%emt 0:14:18]} cxd4 {[%emt 0:02:16]} 13. Nxd4 {[%emt 0:00:14]} Nc6 {[%emt 0:00:14]} 14. Nb3 {[%emt 0:01:41]} a5 {[%emt 0:07:06]} 15. a4 {[%emt 0:01:20]} O-O {[%emt 0:04:26]} 16. Bg4 {[%emt 0:20:26]} Nb4 {[%emt 0:04:23]} 17. f5 {[%emt 0:10:09]} Qc7 {[%emt 0:05:20]} 18. O-O {[%emt 0:03:00]} Bxc3 {[%emt 0:11:16]} 19. bxc3 {[%emt 0:00:09]} Qxc3 {[%emt 0:00:03]} 20. Nd4 {[%emt 0:02:52]} Nc6 {[%emt 0:07:46]} 21. Ne2 {[%emt 0:01:21]} Qf6 {[%emt 0:06:20]} 22. Bxh3 {[%emt 0:03:16]} Bxf5 {[%emt 0:00:18]} 23. Bg2 {[%emt 0:00:56]} Rac8 {[%emt 0:04:15]} 24. Qd2 {[%emt 0:03:56]} Bg4 {[%emt 0:09:49]} 25. Rfc1 {[%emt 0:02:58]} Ne5 {[%emt 0:01:45]} 26. Nd4 {[%emt 0:01:41]} Kg7 {[%emt 0:02:54]} 27. Bxb7 {[%emt 0:03:07]} Rc4 {[%emt 0:00:40]} 28. c3 {[%emt 0:02:02]} Rb8 {[%emt 0:02:20]} 29. Bg2 {[%emt 0:00:22]} Bh3 {[%emt 0:03:26]} 30. Bh1 {[%emt 0:01:28]} Ng4 {[%emt 0:02:38]} 31. Nf3 {[%emt 0:00:32]} Rbc8 {[%emt 0:00:44]} 32. Ra3 {[%emt 0:00:20]} e5 {[%emt 0:00:30]} 33. Ne1 {[%emt 0:00:41]} e4 {[%emt 0:00:36]} 34. Bg2 {[%emt 0:00:24]} Bxg2 {[%emt 0:03:58]} 35. Nxg2 {[%emt 0:00:08]} Ne5 {[%emt 0:00:14]} 36. Kh1 {[%emt 0:00:53]} Qf3 {[%emt 0:01:10]} 37. Qe3 {[%emt 0:00:31]} Nd3 {[%emt 0:01:01]} 38. Rf1 {[%emt 0:00:35]} Qxe3 {[%emt 0:01:42]} 39. Nxe3 {[%emt 0:00:12]} Rxc3 {[%emt 0:00:03]} 40. Rxc3 {[%emt 0:00:39]} Rxc3 {[%emt 0:00:02]} 41. Nf5+ {[%emt 0:30:32]} Kg6 {[%emt 0:32:10]} 42. Nxd6 {[%emt 0:00:33]} f5 {[%emt 0:00:28]} 43. Nb7 {[%emt 0:00:34]} Rc2 {[%emt 0:04:39]} 44. Kg1 {[%emt 0:00:21]} Ra2 {[%emt 0:04:08]} 45. Nxa5 {[%emt 0:00:15]} Rxa4 {[%emt 0:00:03]} 46. Nb3 {[%emt 0:00:00]} Rc4 {[%emt 0:00:00]} 47. Nd2 {[%emt 0:00:00]} Rc2 {[%emt 0:00:00]} 48. Nb3 {[%emt 0:00:00]} Kf6 {[%emt 0:00:00]} 49. Nd4 {[%emt 0:00:00]} Rb2 {[%emt 0:00:00]} 50. Nc6 {[%emt 0:00:00]} Ra2 {[%emt 0:00:00]} 51. Nd4 {[%emt 0:00:00]} Ke5 {[%emt 0:00:00]} 52. Nc6+ {[%emt 0:00:00]} Kd5 {[%emt 0:00:00]} 53. Ne7+ {[%emt 0:00:00]} Ke6 {[%emt 0:00:00]} 54. Ng6 {[%emt 0:00:00]} Kf6 {[%emt 0:00:00]} 55. Nh4 {[%emt 0:00:00]} Kg5 {[%emt 0:00:00]} 56. Ng2 {[%emt 0:00:00]} Re2 {[%emt 0:00:00]} 57. Ne3 {[%emt 0:05:28]} f4 {[%emt 0:00:46]} 58. gxf4+ {[%emt 0:01:25]} Kxf4 {[%emt 0:00:17]} 59. Nd1 {[%emt 0:00:31]} Kf3 {[%emt 0:02:50]} 60. Nc3 {[%emt 0:00:21]} Rxf2 {[%emt 0:01:09]} 61. Rd1 {[%emt 0:00:37]} Rg2+ {[%emt 0:00:44]} 62. Kf1 {[%emt 0:00:10]} Rxh2 {[%emt 0:00:32]} 63. Kg1 {[%emt 0:00:11]} Rg2+ {[%emt 0:01:20]} 64. Kf1 {[%emt 0:00:06]} Rf2+ {[%emt 0:00:53]} 65. Kg1 {[%emt 0:00:05]} Nf4 {[%emt 0:01:15]} 66. Kh1 {[%emt 0:00:48]} e3 {[%emt 0:00:44]} 67. Rd8 {[%emt 0:01:42]} Rc2 {[%emt 0:01:31]} 68. Nb5 {[%emt 0:00:30]} Kf2 {[%emt 0:01:43]} 69. Re8 {[%emt 0:00:31]} e2 {[%emt 0:00:12]} 70. Nd4 {[%emt 0:00:21]} Rc1+ {[%emt 0:00:06]} 71. Kh2 {[%emt 0:00:09]} e1=Q {[%emt 0:00:09]} 72. Rxe1 {[%emt 0:00:25]} Rxe1 {[%emt 0:00:59]} 73. Nf5 {[%emt 0:00:15]} Re8 {[%emt 0:00:11]} 74. Ng7 {[%emt 0:01:07]} Rg8 {[%emt 0:00:10]} 75. Nf5 {[%emt 0:00:27]} Rg2+ {[%emt 0:00:07]} 76. Kh1 {[%emt 0:00:11]} Nh5 {[%emt 0:00:08]} 77. Ne3 {[%emt 0:01:03]} Ng3# {[%emt 0:00:07]} 0-1

[Event "NOR-ch Various 2019"]
[Site "Larvik"]
[Date "2019.07.10"]
[Round "6.18"]
[White "Sebastian, Andreas"]
[Black "Melaa, Sondre"]
[Result "0-1"]
[ECO "D02"]
[WhiteElo "1911"]
[BlackElo "2118"]
[Annotator "NA"]
[PlyCount "82"]
[EventDate "2019.07.06"]
[EventType "swiss"]
[EventCountry "NOR"]
[SourceTitle "playchess.com"]
[Source "ChessBase"]
[SourceQuality "1"]
[TimeControl "40/5400+30:1800+30"]

1. d4 {[%emt 0:00:00]} d5 {[%emt 0:00:00]} 2. Bf4 {[%emt 0:00:00]} Nf6 {[%emt 0:00:33]} 3. e3 {[%emt 0:00:00]} e6 {[%emt 0:00:10]} 4. Bd3 {[%emt 0:00:00]} Bd6 {[%emt 0:00:24]} 5. Nf3 {[%emt 0:00:00]} Bxf4 {[%emt 0:06:28]} 6. exf4 {[%emt 0:00:20]} c5 {[%emt 0:02:50]} 7. dxc5 {[%emt 0:06:43]} Qa5+ {[%emt 0:03:21]} 8. c3 {[%emt 0:00:11]} Qxc5 {[%emt 0:00:33]} 9. O-O {[%emt 0:00:26]} O-O {[%emt 0:06:34]} 10. Nbd2 {[%emt 0:01:02]} Nc6 {[%emt 0:02:01]} 11. Re1 {[%emt 0:06:56]} a5 {[%emt 0:02:45]} 12. a4 {[%emt 0:06:31]} b6 {[%emt 0:00:57]} 13. Qe2 {[%emt 0:04:01]} Bb7 {[%emt 0:05:12]} 14. Ne5 {[%emt 0:03:34]} Rad8 {[%emt 0:08:51]} 15. Rad1 {[%emt 0:06:50]} g6 {[%emt 0:04:33]} 16. Bb1 {[%emt 0:03:20]} Kg7 {[%emt 0:11:24]} 17. Nb3 {[%emt 0:10:25]} Qe7 {[%emt 0:01:49]} 18. Qe3 {[%emt 0:00:29]} Nxe5 {[%emt 0:10:03]} 19. Qxe5 {[%emt 0:02:46]} Rc8 {[%emt 0:04:29]} 20. Nd4 {[%emt 0:03:04]} Kg8 {[%emt 0:05:56]} 21. f5 {[%emt 0:04:03]} Nd7 {[%emt 0:01:06]} 22. Qg3 {[%emt 0:03:54]} e5 {[%emt 0:04:35]} 23. fxg6 {[%emt 0:01:38]} fxg6 {[%emt 0:01:49]} 24. Bf5 {[%emt 0:01:36]} e4 {[%emt 0:02:31]} 25. Be6+ {[%emt 0:01:28]} Kh8 {[%emt 0:02:34]} 26. Bxd7 {[%emt 0:04:20]} Qxd7 {[%emt 0:00:21]} 27. Qe5+ {[%emt 0:00:24]} Kg8 {[%emt 0:00:31]} 28. Nb5 {[%emt 0:03:25]} Bc6 {[%emt 0:04:54]} 29. Nd6 {[%emt 0:02:12]} Rcd8 {[%emt 0:00:42]} 30. Nxe4 {[%emt 0:00:43]} Qf7 {[%emt 0:00:34]} 31. Ng5 {[%emt 0:00:59]} Qxf2+ {[%emt 0:00:27]} 32. Kh1 {[%emt 0:00:05]} Rde8 {[%emt 0:03:00]} 33. Ne6 {[%emt 0:01:46]} Rf6 {[%emt 0:02:05]} 34. Qd4 {[%emt 0:04:34]} Bxa4 {[%emt 0:01:30]} 35. Qxf2 {[%emt 0:07:21]} Rxf2 {[%emt 0:00:05]} 36. Ng5 {[%emt 0:06:22]} Rxe1+ {[%emt 0:00:23]} 37. Rxe1 {[%emt 0:00:01]} Rxb2 {[%emt 0:00:09]} 38. h4 {[%emt 0:00:25]} h6 {[%emt 0:00:48]} 39. Ne6 {[%emt 0:00:18]} Bc2 {[%emt 0:00:27]} 40. Rf1 {[%emt 0:00:29]} Bf5 {[%emt 0:00:48]} 41. Nf4 {[%emt 0:30:07]} Be4 {[%emt 0:30:13]} 0-1

[Event "NOR-ch Various 2019"]
[Site "Larvik"]
[Date "2019.07.10"]
[Round "6.19"]
[White "Opseth, Oliver"]
[Black "Sjoberg, Isak"]
[Result "1/2-1/2"]
[ECO "D00"]
[WhiteElo "1714"]
[BlackElo "2182"]
[Annotator "NA"]
[PlyCount "75"]
[EventDate "2019.07.06"]
[EventType "swiss"]
[EventCountry "NOR"]
[SourceTitle "playchess.com"]
[Source "ChessBase"]
[SourceQuality "1"]
[TimeControl "40/5400+30:1800+30"]

1. d4 {[%emt 0:00:00]} Nf6 {[%emt 0:01:02]} 2. Bf4 {[%emt 0:00:00]} g6 {[%emt 0:01:04]} 3. Nf3 {[%emt 0:01:08]} Bg7 {[%emt 0:00:36]} 4. Nc3 {[%emt 0:00:27]} d5 {[%emt 0:00:04]} 5. Qd2 {[%emt 0:02:36]} O-O {[%emt 0:00:15]} 6. O-O-O {[%emt 0:02:31]} c5 {[%emt 0:02:45]} 7. dxc5 {[%emt 0:05:24]} Nbd7 {[%emt 0:10:50]} 8. Nxd5 {[%emt 0:05:06]} e5 {[%emt 0:06:22]} 9. Bg5 {[%emt 0:14:39]} e4 {[%emt 0:00:59]} 10. Ne5 {[%emt 0:02:22]} Qe8 {[%emt 0:23:03]} 11. Nxd7 {[%emt 0:02:17]} Nxd7 {[%emt 0:02:50]} 12. Be7 {[%emt 0:01:25]} Ne5 {[%emt 0:00:18]} 13. Bxf8 {[%emt 0:02:21]} Qxf8 {[%emt 0:01:37]} 14. Nc7 {[%emt 0:01:25]} Rb8 {[%emt 0:00:06]} 15. Qd8 {[%emt 0:00:25]} Nd3+ {[%emt 0:00:04]} 16. Rxd3 {[%emt 0:00:19]} exd3 {[%emt 0:00:05]} 17. Qxf8+ {[%emt 0:00:22]} Bxf8 {[%emt 0:00:08]} 18. exd3 {[%emt 0:01:20]} Bxc5 {[%emt 0:00:07]} 19. f3 {[%emt 0:02:59]} Bd7 {[%emt 0:06:34]} 20. c3 {[%emt 0:01:53]} Be3+ {[%emt 0:12:18]} 21. Kc2 {[%emt 0:00:19]} Ba4+ {[%emt 0:00:38]} 22. b3 {[%emt 0:01:02]} Bc6 {[%emt 0:00:02]} 23. d4 {[%emt 0:02:55]} a6 {[%emt 0:03:20]} 24. d5 {[%emt 0:03:53]} Bd7 {[%emt 0:00:01]} 25. d6 {[%emt 0:01:06]} Bc6 {[%emt 0:01:36]} 26. Bc4 {[%emt 0:03:09]} Bf4 {[%emt 0:01:23]} 27. Nd5 {[%emt 0:02:19]} Bxd6 {[%emt 0:00:06]} 28. Rd1 {[%emt 0:01:37]} Kg7 {[%emt 0:09:09]} 29. h3 {[%emt 0:01:32]} b5 {[%emt 0:01:29]} 30. Bf1 {[%emt 0:00:50]} Bg3 {[%emt 0:04:03]} 31. c4 {[%emt 0:04:48]} b4 {[%emt 0:02:17]} 32. Rd2 {[%emt 0:06:31]} a5 {[%emt 0:02:02]} 33. Ne7 {[%emt 0:03:10]} Be8 {[%emt 0:00:28]} 34. Nd5 {[%emt 0:06:39]} Bc6 {[%emt 0:00:41]} 35. Ne7 {[%emt 0:01:16]} Be8 {[%emt 0:00:08]} 36. Nd5 {[%emt 0:02:12]} Bc6 {[%emt 0:07:04]} 37. Ne7 {[%emt 0:00:33]} Be8 {[%emt 0:00:28]} 38. Nd5 {[%emt 0:00:14]} 1/2-1/2